[Event "23rd ETCC Women 2021"]
[Site "Catez"]
[Date "2021.11.13"]
[Round "2.39"]
[White "Eric, Jovana"]
[Black "Kocyigit, Buse Naz"]
[Result "1-0"]
[ECO "B27"]
[WhiteElo "2253"]
[BlackElo "2034"]
[Annotator "ChessBase"]
[PlyCount "141"]
[EventDate "2021.11.08"]
[EventType "team-tourn"]
[EventCountry "SLO"]
[SourceTitle "playchess.com"]
[Source "ChessBase"]
[SourceQuality "1"]
[WhiteTeam "Serbia"]
[BlackTeam "Turkey"]
[WhiteTeamCountry "SRB"]
[BlackTeamCountry "TUR"]
[TimeControl "40/5400+30:1800+30"]

1. e4 {[%emt 0:00:03]} c5 {[%emt 0:00:07]} 2. Nf3 {[%emt 0:00:08]} g6 {[%emt 0:
00:05]} 3. d4 {[%emt 0:00:15]} cxd4 {[%emt 0:00:04]} 4. Qxd4 {[%emt 0:00:25]}
Nf6 {[%emt 0:00:04]} 5. Nc3 {[%emt 0:00:21]} Nc6 {[%emt 0:02:48]} 6. Qa4 {
[%emt 0:00:37]} d6 {[%emt 0:01:30]} 7. e5 {[%emt 0:01:54]} dxe5 {[%emt 0:17:55]
} 8. Nxe5 {[%emt 0:00:19]} Bd7 {[%emt 0:00:34]} 9. Nxd7 {[%emt 0:01:57]} Qxd7 {
[%emt 0:00:26]} 10. Be3 {[%emt 0:03:16]} Bg7 {[%emt 0:03:59]} 11. Rd1 {[%emt 0:
07:22]} Qc8 {[%emt 0:17:21]} 12. Be2 {[%emt 0:09:54]} O-O {[%emt 0:00:11]} 13.
O-O {[%emt 0:00:18]} Qf5 {[%emt 0:07:12]} 14. h3 {[%emt 0:07:32]} a6 {[%emt 0:
16:41]} 15. Qb3 {[%emt 0:09:52]} b5 {[%emt 0:04:16]} 16. a4 {[%emt 0:08:19]}
Na5 {[%emt 0:02:46]} 17. Qb4 {[%emt 0:10:21]} Nc4 {[%emt 0:00:09]} 18. Bd3 {
[%emt 0:05:58]} Qc8 {[%emt 0:02:35]} 19. Bxc4 {[%emt 0:01:43]} bxc4 {[%emt 0:
03:30]} 20. Qxe7 {[%emt 0:01:32]} Qf5 {[%emt 0:03:31]} 21. Bd4 {[%emt 0:09:24]}
Rfe8 {[%emt 0:01:25]} 22. Qb4 {[%emt 0:09:08]} Rec8 {[%emt 0:05:14]} 23. Rd2 {
[%emt 0:02:59]} Rab8 {[%emt 0:01:48]} 24. Qa3 {[%emt 0:00:42]} Bf8 {[%emt 0:00:
40]} 25. Qa1 {[%emt 0:00:37]} Bh6 {[%emt 0:03:35]} 26. Re2 {[%emt 0:00:45]} Nh5
{[%emt 0:00:45]} 27. Ne4 {[%emt 0:02:22]} Rd8 {[%emt 0:02:57]} 28. Bc3 {
[%emt 0:01:04]} Rb6 {[%emt 0:01:37]} 29. Ng3 {[%emt 0:02:01]} Nxg3 {[%emt 0:00:
27]} 30. fxg3 {[%emt 0:00:04]} Qc5+ {[%emt 0:00:08]} 31. Kh2 {[%emt 0:00:06]}
f5 {[%emt 0:00:53]} 32. Qe1 {[%emt 0:00:27]} Kf7 {[%emt 0:00:43]} 33. Ba5 {
[%emt 0:03:17]} Rbb8 {[%emt 0:00:13]} 34. Re5 {[%emt 0:00:24]} Rd5 {[%emt 0:00:
30]} 35. Rxd5 {[%emt 0:01:28]} Qxd5 {[%emt 0:00:01]} 36. Bc3 {[%emt 0:00:26]}
Re8 {[%emt 0:00:07]} 37. Qf2 {[%emt 0:00:36]} Kg8 {[%emt 0:01:08]} 38. Re1 {
[%emt 0:00:35]} Rf8 {[%emt 0:00:26]} 39. Qd4 {[%emt 0:00:44]} Qxd4 {[%emt 0:00:
01]} 40. Bxd4 {[%emt 0:00:06]} Bg7 {[%emt 0:00:35]} 41. Bxg7 {[%emt 0:30:57]}
Kxg7 {[%emt 0:30:01]} 42. Re7+ {[%emt 0:00:00]} Kf6 {[%emt 0:00:00]} 43. Ra7 {
[%emt 0:00:00]} Rb8 {[%emt 0:00:00]} 44. Rxa6+ {[%emt 0:00:00]} Ke5 {[%emt 0:
00:00]} 45. Ra5+ {[%emt 0:00:00]} Kd4 {[%emt 0:00:00]} 46. Rb5 {[%emt 0:00:00]}
Rc8 {[%emt 0:00:00]} 47. Rb4 {[%emt 0:00:00]} Kc5 {[%emt 0:00:00]} 48. c3 {
[%emt 0:00:00]} Rd8 {[%emt 0:00:00]} 49. Kg1 {[%emt 0:00:00]} Rd2 {[%emt 0:00:
00]} 50. Kf1 {[%emt 0:00:00]} Rc2 {[%emt 0:00:16]} 51. Rb5+ {[%emt 0:00:00]}
Kc6 {[%emt 0:00:13]} 52. Rb8 {[%emt 0:00:00]} Rc1+ {[%emt 0:01:44]} 53. Ke2 {
[%emt 0:00:00]} Ra1 {[%emt 0:00:39]} 54. Ke3 {[%emt 0:00:00]} Rxa4 {[%emt 0:01:
36]} 55. Kd4 {[%emt 0:00:00]} Ra1 {[%emt 0:00:44]} 56. Kxc4 {[%emt 0:00:00]}
Rg1 {[%emt 0:00:16]} 57. b4 {[%emt 0:00:00]} Rxg2 {[%emt 0:00:16]} 58. b5+ {
[%emt 0:00:00]} Kc7 {[%emt 0:00:27]} 59. Rh8 {[%emt 0:00:00]} Rxg3 {[%emt 0:01:
02]} 60. Rxh7+ {[%emt 0:00:00]} Kb6 {[%emt 0:01:38]} 61. Rf7 {[%emt 0:00:00]}
Rg5 {[%emt 0:02:01]} 62. Rf6+ {[%emt 0:00:00]} Kc7 {[%emt 0:01:02]} 63. Kb4 {
[%emt 0:00:00]} Rg3 {[%emt 0:00:32]} 64. c4 {[%emt 0:00:00]} Rxh3 {[%emt 0:00:
28]} 65. Rxg6 {[%emt 0:00:00]} f4 {[%emt 0:00:27]} 66. Rf6 {[%emt 0:00:00]} Rh4
{[%emt 0:00:39]} 67. Rf7+ {[%emt 0:00:00]} Kd6 {[%emt 0:00:24]} 68. b6 {
[%emt 0:00:00]} Kc6 {[%emt 0:00:33]} 69. Rf6+ {[%emt 0:00:00]} Kb7 {[%emt 0:00:
32]} 70. Kb5 {[%emt 0:00:00]} Rh5+ {[%emt 0:00:27]} 71. c5 {[%emt 0:00:00]} 1-0

[Event "23rd ETCC Women 2021"]
[Site "Catez"]
[Date "2021.11.13"]
[Round "2.40"]
[White "Aydin, Gulenay"]
[Black "Gajcin, Marina"]
[Result "0-1"]
[ECO "B30"]
[WhiteElo "2114"]
[BlackElo "2198"]
[Annotator "NA"]
[PlyCount "48"]
[EventDate "2021.11.08"]
[EventType "team-tourn"]
[EventCountry "SLO"]
[SourceTitle "playchess.com"]
[Source "ChessBase"]
[SourceQuality "1"]
[WhiteTeam "Turkey"]
[BlackTeam "Serbia"]
[WhiteTeamCountry "TUR"]
[BlackTeamCountry "SRB"]
[TimeControl "40/5400+30:1800+30"]

1. e4 {[%emt 0:00:14]} c5 {[%emt 0:00:12]} 2. Nc3 {[%emt 0:00:13]} Nc6 {
[%emt 0:07:25]} 3. Bb5 {[%emt 0:00:20]} Nd4 {[%emt 0:01:39]} 4. Bc4 {[%emt 0:
00:17]} e6 {[%emt 0:01:43]} 5. Nge2 {[%emt 0:02:00]} Ne7 {[%emt 0:05:28]} 6.
Nxd4 {[%emt 0:08:04]} cxd4 {[%emt 0:00:05]} 7. Ne2 {[%emt 0:00:16]} Nc6 {
[%emt 0:02:43]} 8. O-O {[%emt 0:04:20]} Be7 {[%emt 0:02:09]} 9. d3 {[%emt 0:03:
16]} O-O {[%emt 0:03:44]} 10. h3 {[%emt 0:10:30]} b6 {[%emt 0:12:10]} 11. f4 {
[%emt 0:21:51]} Bb7 {[%emt 0:06:03]} 12. g4 {[%emt 0:02:26]} Na5 {[%emt 0:09:
15]} 13. Bb3 {[%emt 0:01:21]} Nxb3 {[%emt 0:02:53]} 14. axb3 {[%emt 0:00:59]}
f5 {[%emt 0:04:35]} 15. exf5 {[%emt 0:24:40]} Qc7 {[%emt 0:03:35]} 16. Ng3 {
[%emt 0:06:38]} Qc6 {[%emt 0:04:25]} 17. Rf2 {[%emt 0:01:29]} Bh4 {[%emt 0:08:
48]} 18. Kh2 {[%emt 0:00:40]} exf5 {[%emt 0:00:23]} 19. g5 {[%emt 0:01:19]} h6
{[%emt 0:03:04]} 20. Ra4 {[%emt 0:06:31]} hxg5 {[%emt 0:02:11]} 21. Rxd4 {
[%emt 0:01:27]} g4 {[%emt 0:05:04]} 22. hxg4 {[%emt 0:01:18]} Kf7 {[%emt 0:04:
54]} 23. Re2 {[%emt 0:01:11]} Bxg3+ {[%emt 0:00:21]} 24. Kxg3 {[%emt 0:00:15]}
Qf3+ {[%emt 0:00:05]} 0-1

[Event "23rd ETCC Women 2021"]
[Site "Catez"]
[Date "2021.11.13"]
[Round "2.41"]
[White "Georgescu, Lena"]
[Black "Unuk, Laura"]
[Result "1-0"]
[ECO "C82"]
[WhiteElo "2262"]
[BlackElo "2353"]
[Annotator "NA"]
[PlyCount "85"]
[EventDate "2021.11.08"]
[EventType "team-tourn"]
[EventCountry "SLO"]
[SourceTitle "playchess.com"]
[Source "ChessBase"]
[SourceQuality "1"]
[WhiteTeam "Switzerland"]
[BlackTeam "Slovenia"]
[WhiteTeamCountry "SUI"]
[BlackTeamCountry "SLO"]
[TimeControl "40/5400+30:1800+30"]

1. e4 {[%emt 0:00:04]} e5 {[%emt 0:00:16]} 2. Nf3 {[%emt 0:00:06]} Nc6 {
[%emt 0:00:04]} 3. Bb5 {[%emt 0:00:08]} a6 {[%emt 0:00:17]} 4. Ba4 {[%emt 0:00:
05]} Nf6 {[%emt 0:00:04]} 5. O-O {[%emt 0:00:20]} Nxe4 {[%emt 0:01:25]} 6. d4 {
[%emt 0:00:25]} b5 {[%emt 0:00:21]} 7. Bb3 {[%emt 0:00:04]} d5 {[%emt 0:00:15]}
8. dxe5 {[%emt 0:00:09]} Be6 {[%emt 0:00:05]} 9. c3 {[%emt 0:00:14]} Bc5 {
[%emt 0:02:53]} 10. Nbd2 {[%emt 0:00:13]} O-O {[%emt 0:00:32]} 11. Bc2 {
[%emt 0:00:47]} Nxf2 {[%emt 0:05:22]} 12. Rxf2 {[%emt 0:00:06]} Bxf2+ {[%emt 0:
00:04]} 13. Kxf2 {[%emt 0:00:06]} f6 {[%emt 0:00:04]} 14. Nf1 {[%emt 0:09:49]}
fxe5 {[%emt 0:10:04]} 15. Kg1 {[%emt 0:00:07]} Bg4 {[%emt 0:26:21]} 16. Ne3 {
[%emt 0:08:58]} Bxf3 {[%emt 0:09:00]} 17. gxf3 {[%emt 0:00:06]} Ne7 {[%emt 0:
04:14]} 18. Qd3 {[%emt 0:15:07]} g6 {[%emt 0:22:13]} 19. Ng4 {[%emt 0:01:01]}
Qd6 {[%emt 0:01:24]} 20. Bh6 {[%emt 0:05:37]} Rfe8 {[%emt 0:02:01]} 21. Bg5 {
[%emt 0:04:37]} Kf7 {[%emt 0:01:04]} 22. f4 {[%emt 0:18:08]} e4 {[%emt 0:02:02]
} 23. Qh3 {[%emt 0:01:01]} h5 {[%emt 0:01:43]} 24. Ne3 {[%emt 0:02:20]} Qe6 {
[%emt 0:03:20]} 25. f5 {[%emt 0:04:02]} Nxf5 {[%emt 0:01:08]} 26. Nxd5 {
[%emt 0:10:08]} Kg7 {[%emt 0:01:38]} 27. Bb3 {[%emt 0:09:28]} Qd6 {[%emt 0:02:
15]} 28. Ne3 {[%emt 0:01:10]} Qc5 {[%emt 0:00:59]} 29. Kh1 {[%emt 0:01:47]} Rf8
{[%emt 0:00:17]} 30. Rd1 {[%emt 0:00:48]} Rae8 {[%emt 0:03:25]} 31. Nxf5+ {
[%emt 0:06:14]} Qxf5 {[%emt 0:00:08]} 32. Rd7+ {[%emt 0:00:15]} Kh8 {[%emt 0:
00:04]} 33. Be3 {[%emt 0:01:42]} c5 {[%emt 0:00:29]} 34. Qxf5 {[%emt 0:01:10]}
Rxf5 {[%emt 0:00:08]} 35. Bd5 {[%emt 0:00:36]} Ree5 {[%emt 0:01:40]} 36. c4 {
[%emt 0:00:38]} bxc4 {[%emt 0:00:01]} 37. Bxc4 {[%emt 0:00:17]} g5 {[%emt 0:01:
07]} 38. b4 {[%emt 0:00:50]} Rf3 {[%emt 0:00:30]} 39. Bxc5 {[%emt 0:00:15]}
Rxc5 {[%emt 0:00:25]} 40. bxc5 {[%emt 0:00:03]} Rc3 {[%emt 0:00:20]} 41. c6 {
[%emt 0:31:16]} Rxc4 {[%emt 0:30:44]} 42. c7 {[%emt 0:00:04]} e3 {[%emt 0:00:
00]} 43. Rd8+ {[%emt 0:00:00]} 1-0

[Event "23rd ETCC Women 2021"]
[Site "Catez"]
[Date "2021.11.13"]
[Round "2.42"]
[White "Urh, Zala"]
[Black "Hakimifard, Ghazal"]
[Result "0-1"]
[ECO "E15"]
[WhiteElo "2332"]
[BlackElo "2267"]
[Annotator "NA"]
[PlyCount "120"]
[EventDate "2021.11.08"]
[EventType "team-tourn"]
[EventCountry "SLO"]
[SourceTitle "playchess.com"]
[Source "ChessBase"]
[SourceQuality "1"]
[WhiteTeam "Slovenia"]
[BlackTeam "Switzerland"]
[WhiteTeamCountry "SLO"]
[BlackTeamCountry "SUI"]
[TimeControl "40/5400+30:1800+30"]

1. d4 {[%emt 0:00:02]} Nf6 {[%emt 0:00:08]} 2. c4 {[%emt 0:00:16]} e6 {[%emt 0:
00:04]} 3. Nf3 {[%emt 0:00:06]} b6 {[%emt 0:00:08]} 4. g3 {[%emt 0:00:15]} Ba6
{[%emt 0:00:09]} 5. b3 {[%emt 0:00:24]} Bb4+ {[%emt 0:00:12]} 6. Bd2 {[%emt 0:
01:32]} Be7 {[%emt 0:00:06]} 7. Nc3 {[%emt 0:02:31]} c6 {[%emt 0:00:09]} 8. e4
{[%emt 0:01:07]} d5 {[%emt 0:00:20]} 9. Bd3 {[%emt 0:04:59]} c5 {[%emt 0:02:01]
} 10. exd5 {[%emt 0:19:41]} exd5 {[%emt 0:01:56]} 11. dxc5 {[%emt 0:02:20]}
dxc4 {[%emt 0:09:29]} 12. Bxc4 {[%emt 0:00:49]} Bxc4 {[%emt 0:06:32]} 13. bxc4
{[%emt 0:00:15]} O-O {[%emt 0:05:10]} 14. cxb6 {[%emt 0:05:59]} axb6 {[%emt 0:
00:11]} 15. O-O {[%emt 0:01:18]} Ra3 {[%emt 0:03:49]} 16. Re1 {[%emt 0:21:24]}
Bc5 {[%emt 0:07:39]} 17. Qc1 {[%emt 0:11:27]} Ng4 {[%emt 0:05:49]} 18. Re2 {
[%emt 0:10:41]} Qf6 {[%emt 0:16:41]} 19. Kg2 {[%emt 0:01:50]} Nc6 {[%emt 0:00:
55]} 20. Be1 {[%emt 0:03:54]} Nce5 {[%emt 0:16:34]} 21. Qf4 {[%emt 0:03:48]}
Qxf4 {[%emt 0:03:59]} 22. gxf4 {[%emt 0:00:05]} Nxc4 {[%emt 0:03:34]} 23. Rc1 {
[%emt 0:02:16]} Nd6 {[%emt 0:01:15]} 24. Nd5 {[%emt 0:02:07]} Rfa8 {[%emt 0:02:
00]} 25. h3 {[%emt 0:01:56]} Nf6 {[%emt 0:03:03]} 26. Nxf6+ {[%emt 0:00:05]}
gxf6 {[%emt 0:00:01]} 27. Rcc2 {[%emt 0:00:33]} R8a4 {[%emt 0:00:17]} 28. Nd2 {
[%emt 0:01:51]} Rxa2 {[%emt 0:03:01]} 29. Nb3 {[%emt 0:00:10]} Rxc2 {[%emt 0:
02:12]} 30. Rxc2 {[%emt 0:00:02]} Re4 {[%emt 0:00:38]} 31. Bc3 {[%emt 0:01:32]}
Rxf4 {[%emt 0:01:20]} 32. Nxc5 {[%emt 0:00:28]} bxc5 {[%emt 0:00:01]} 33. Bd2 {
[%emt 0:00:38]} Rc4 {[%emt 0:01:24]} 34. Ra2 {[%emt 0:00:04]} Nf5 {[%emt 0:00:
31]} 35. Kf3 {[%emt 0:00:58]} Kg7 {[%emt 0:00:51]} 36. Ra7 {[%emt 0:00:28]}
Nd4+ {[%emt 0:01:21]} 37. Ke3 {[%emt 0:00:22]} Ne6 {[%emt 0:00:17]} 38. Kf3 {
[%emt 0:00:42]} f5 {[%emt 0:00:48]} 39. Ra8 {[%emt 0:00:15]} Rc2 {[%emt 0:01:
41]} 40. Be3 {[%emt 0:00:42]} Rc3 {[%emt 0:01:01]} 41. Kg2 {[%emt 0:02:11]} f4
{[%emt 0:07:21]} 42. Bd2 {[%emt 0:00:09]} Rd3 {[%emt 0:00:32]} 43. Bc1 {
[%emt 0:00:52]} Rb3 {[%emt 0:00:11]} 44. Ra4 {[%emt 0:00:51]} Rb4 {[%emt 0:02:
04]} 45. Ra3 {[%emt 0:00:23]} Kg6 {[%emt 0:01:12]} 46. Bd2 {[%emt 0:00:48]} Rd4
{[%emt 0:00:05]} 47. Ba5 {[%emt 0:00:15]} Kf5 {[%emt 0:00:28]} 48. Rc3 {
[%emt 0:00:48]} Ra4 {[%emt 0:01:09]} 49. Bb6 {[%emt 0:00:09]} c4 {[%emt 0:00:
07]} 50. f3 {[%emt 0:01:03]} Ke5 {[%emt 0:01:22]} 51. h4 {[%emt 0:00:05]} h5 {
[%emt 0:01:26]} 52. Rc2 {[%emt 0:00:31]} Kd5 {[%emt 0:01:12]} 53. Rd2+ {
[%emt 0:00:32]} Kc6 {[%emt 0:00:01]} 54. Bf2 {[%emt 0:00:01]} Ra3 {[%emt 0:01:
42]} 55. Be1 {[%emt 0:00:22]} Rb3 {[%emt 0:00:57]} 56. Rc2 {[%emt 0:00:55]} Kd5
{[%emt 0:01:38]} 57. Rd2+ {[%emt 0:00:25]} Nd4 {[%emt 0:01:14]} 58. Ra2 {
[%emt 0:00:56]} Nxf3 {[%emt 0:00:22]} 59. Ra5+ {[%emt 0:00:21]} Ke4 {[%emt 0:
00:08]} 60. Bf2 {[%emt 0:00:10]} Ne5 {[%emt 0:00:24]} 0-1

[Event "23rd ETCC Women 2021"]
[Site "Catez"]
[Date "2021.11.13"]
[Round "2.43"]
[White "Stoeri, Laura"]
[Black "Janzelj, Lara"]
[Result "0-1"]
[ECO "C84"]
[WhiteElo "2130"]
[BlackElo "2150"]
[Annotator "NA"]
[PlyCount "90"]
[EventDate "2021.11.08"]
[EventType "team-tourn"]
[EventCountry "SLO"]
[SourceTitle "playchess.com"]
[Source "ChessBase"]
[SourceQuality "1"]
[WhiteTeam "Switzerland"]
[BlackTeam "Slovenia"]
[WhiteTeamCountry "SUI"]
[BlackTeamCountry "SLO"]
[TimeControl "40/5400+30:1800+30"]

1. e4 {[%emt 0:00:03]} e5 {[%emt 0:00:07]} 2. Nf3 {[%emt 0:00:08]} Nc6 {
[%emt 0:00:05]} 3. Bb5 {[%emt 0:00:05]} a6 {[%emt 0:00:06]} 4. Ba4 {[%emt 0:00:
04]} Nf6 {[%emt 0:00:07]} 5. O-O {[%emt 0:03:51]} b5 {[%emt 0:01:35]} 6. Bb3 {
[%emt 0:00:51]} Be7 {[%emt 0:00:18]} 7. d3 {[%emt 0:05:38]} d6 {[%emt 0:00:50]}
8. a4 {[%emt 0:03:04]} Rb8 {[%emt 0:01:43]} 9. h3 {[%emt 0:02:00]} O-O {
[%emt 0:00:24]} 10. axb5 {[%emt 0:11:57]} axb5 {[%emt 0:00:11]} 11. c3 {
[%emt 0:04:18]} d5 {[%emt 0:11:32]} 12. Nbd2 {[%emt 0:06:28]} Re8 {[%emt 0:07:
13]} 13. Re1 {[%emt 0:05:14]} Bf8 {[%emt 0:01:14]} 14. Nf1 {[%emt 0:11:38]} h6
{[%emt 0:03:23]} 15. Bd2 {[%emt 0:11:04]} Be6 {[%emt 0:02:08]} 16. Ra6 {
[%emt 0:03:35]} Qd7 {[%emt 0:03:37]} 17. Ng3 {[%emt 0:05:36]} Bd6 {[%emt 0:10:
56]} 18. Nh4 {[%emt 0:06:26]} Ne7 {[%emt 0:04:18]} 19. Qe2 {[%emt 0:06:37]}
Red8 {[%emt 0:09:27]} 20. Bc1 {[%emt 0:03:48]} c5 {[%emt 0:08:43]} 21. Bc2 {
[%emt 0:00:13]} d4 {[%emt 0:05:26]} 22. Qf3 {[%emt 0:00:22]} Nh7 {[%emt 0:01:
21]} 23. Nh5 {[%emt 0:05:11]} Ng6 {[%emt 0:04:02]} 24. Nf5 {[%emt 0:00:58]} Bf8
{[%emt 0:00:09]} 25. g4 {[%emt 0:00:48]} Qb7 {[%emt 0:04:36]} 26. Ra1 {[%emt 0:
00:05]} Ra8 {[%emt 0:01:02]} 27. Rxa8 {[%emt 0:00:07]} Rxa8 {[%emt 0:00:01]}
28. Kh2 {[%emt 0:00:01]} dxc3 {[%emt 0:01:33]} 29. bxc3 {[%emt 0:00:02]} Ra1 {
[%emt 0:00:51]} 30. Rg1 {[%emt 0:00:17]} b4 {[%emt 0:00:26]} 31. cxb4 {[%emt 0:
03:33]} cxb4 {[%emt 0:00:19]} 32. Be3 {[%emt 0:00:07]} Rxg1 {[%emt 0:00:55]}
33. Kxg1 {[%emt 0:00:01]} b3 {[%emt 0:00:07]} 34. Bb1 {[%emt 0:00:03]} Ng5 {
[%emt 0:02:27]} 35. Qg3 {[%emt 0:01:19]} Qa6 {[%emt 0:01:45]} 36. Kh2 {[%emt 0:
01:26]} Qa1 {[%emt 0:00:14]} 37. Bxg5 {[%emt 0:00:04]} Qxb1 {[%emt 0:03:50]}
38. Bxh6 {[%emt 0:01:53]} gxh6 {[%emt 0:00:19]} 39. g5 {[%emt 0:00:26]} Qd1 {
[%emt 0:00:59]} 40. Nf6+ {[%emt 0:00:20]} Kh8 {[%emt 0:00:05]} 41. Ng4 {
[%emt 0:08:57]} b2 {[%emt 0:05:43]} 42. Nxe5 {[%emt 0:01:02]} b1=Q {[%emt 0:01:
45]} 43. Nxg6+ {[%emt 0:03:05]} fxg6 {[%emt 0:00:35]} 44. Qe5+ {[%emt 0:00:09]}
Kh7 {[%emt 0:00:07]} 45. Qc7+ {[%emt 0:00:27]} Kg8 {[%emt 0:00:10]} 0-1

[Event "23rd ETCC Women 2021"]
[Site "Catez"]
[Date "2021.11.13"]
[Round "2.44"]
[White "Krivec, Jana"]
[Black "De Seroux, Camille"]
[Result "0-1"]
[ECO "B20"]
[WhiteElo "2227"]
[BlackElo "2125"]
[Annotator "NA"]
[PlyCount "66"]
[EventDate "2021.11.08"]
[EventType "team-tourn"]
[EventCountry "SLO"]
[SourceTitle "playchess.com"]
[Source "ChessBase"]
[SourceQuality "1"]
[WhiteTeam "Slovenia"]
[BlackTeam "Switzerland"]
[WhiteTeamCountry "SLO"]
[BlackTeamCountry "SUI"]
[TimeControl "40/5400+30:1800+30"]

1. e4 {[%emt 0:00:03]} c5 {[%emt 0:00:04]} 2. d3 {[%emt 0:00:05]} Nc6 {[%emt 0:
01:47]} 3. f4 {[%emt 0:01:36]} g6 {[%emt 0:03:31]} 4. g3 {[%emt 0:00:17]} Bg7 {
[%emt 0:01:07]} 5. Bg2 {[%emt 0:00:17]} e6 {[%emt 0:05:04]} 6. Nf3 {[%emt 0:00:
26]} Nge7 {[%emt 0:00:15]} 7. O-O {[%emt 0:01:32]} O-O {[%emt 0:00:15]} 8. c3 {
[%emt 0:00:35]} d6 {[%emt 0:03:47]} 9. Be3 {[%emt 0:00:51]} b6 {[%emt 0:09:37]}
10. Bf2 {[%emt 0:00:44]} Ba6 {[%emt 0:05:21]} 11. Re1 {[%emt 0:00:15]} Rc8 {
[%emt 0:01:29]} 12. Na3 {[%emt 0:08:53]} b5 {[%emt 0:05:09]} 13. Nc2 {[%emt 0:
07:50]} b4 {[%emt 0:10:10]} 14. cxb4 {[%emt 0:01:43]} Rb8 {[%emt 0:06:52]} 15.
d4 {[%emt 0:25:33]} cxd4 {[%emt 0:02:18]} 16. Nfxd4 {[%emt 0:05:19]} Nxb4 {
[%emt 0:01:42]} 17. Nxb4 {[%emt 0:00:17]} Rxb4 {[%emt 0:00:09]} 18. Rb1 {
[%emt 0:01:44]} Qb8 {[%emt 0:14:30]} 19. b3 {[%emt 0:08:10]} Rc8 {[%emt 0:00:
42]} 20. Qd2 {[%emt 0:06:48]} Rb7 {[%emt 0:04:35]} 21. Qa5 {[%emt 0:07:44]} Rb6
{[%emt 0:03:56]} 22. Rbc1 {[%emt 0:11:19]} Nc6 {[%emt 0:01:47]} 23. Nxc6 {
[%emt 0:00:44]} Rbxc6 {[%emt 0:00:12]} 24. Rxc6 {[%emt 0:00:05]} Rxc6 {[%emt 0:
00:07]} 25. e5 {[%emt 0:02:37]} d5 {[%emt 0:03:23]} 26. Bf1 {[%emt 0:02:26]}
Bxf1 {[%emt 0:02:41]} 27. Rxf1 {[%emt 0:00:25]} a6 {[%emt 0:01:37]} 28. b4 {
[%emt 0:02:11]} Bf8 {[%emt 0:02:10]} 29. Rb1 {[%emt 0:00:30]} Qc8 {[%emt 0:05:
28]} 30. a4 {[%emt 0:02:54]} Rc2 {[%emt 0:02:41]} 31. Qb6 {[%emt 0:00:42]} Ra2
{[%emt 0:01:57]} 32. a5 {[%emt 0:00:05]} Qc4 {[%emt 0:00:51]} 33. Qd8 {[%emt 0:
00:57]} Rxf2 {[%emt 0:00:57]} 0-1

[Event "23rd ETCC Women 2021"]
[Site "Catez"]
[Date "2021.11.13"]
[Round "2.45"]
[White "Pilsova, Karolina"]
[Black "Cvitan, Ena"]
[Result "0-1"]
[ECO "A17"]
[WhiteElo "2281"]
[BlackElo "2234"]
[Annotator "NA"]
[PlyCount "130"]
[EventDate "2021.11.08"]
[EventType "team-tourn"]
[EventCountry "SLO"]
[SourceTitle "playchess.com"]
[Source "ChessBase"]
[SourceQuality "1"]
[WhiteTeam "Czech Republic"]
[BlackTeam "Croatia"]
[WhiteTeamCountry "CZE"]
[BlackTeamCountry "CRO"]
[TimeControl "40/5400+30:1800+30"]

1. c4 {[%emt 0:00:04]} e6 {[%emt 0:02:51]} 2. Nf3 {[%emt 0:00:37]} d5 {[%emt 0:
00:06]} 3. e3 {[%emt 0:00:14]} Nf6 {[%emt 0:01:44]} 4. Nc3 {[%emt 0:00:28]} a6
{[%emt 0:00:12]} 5. b3 {[%emt 0:01:36]} c5 {[%emt 0:06:00]} 6. cxd5 {[%emt 0:
00:51]} exd5 {[%emt 0:00:34]} 7. d4 {[%emt 0:02:44]} Nc6 {[%emt 0:04:15]} 8.
Bb2 {[%emt 0:03:22]} Bg4 {[%emt 0:07:14]} 9. Be2 {[%emt 0:00:12]} Bxf3 {
[%emt 0:02:43]} 10. Bxf3 {[%emt 0:00:21]} cxd4 {[%emt 0:00:04]} 11. exd4 {
[%emt 0:01:19]} Bb4 {[%emt 0:04:35]} 12. O-O {[%emt 0:02:19]} Bxc3 {[%emt 0:04:
01]} 13. Bxc3 {[%emt 0:00:13]} O-O {[%emt 0:00:07]} 14. Qd3 {[%emt 0:08:45]}
Qd7 {[%emt 0:02:06]} 15. Bd2 {[%emt 0:20:34]} Ne4 {[%emt 0:05:21]} 16. g3 {
[%emt 0:13:36]} Qf5 {[%emt 0:09:49]} 17. Bg2 {[%emt 0:01:27]} Qf6 {[%emt 0:06:
05]} 18. Be3 {[%emt 0:03:01]} Nb4 {[%emt 0:04:18]} 19. Qe2 {[%emt 0:02:54]} Nc6
{[%emt 0:04:10]} 20. Qd3 {[%emt 0:02:15]} Nb4 {[%emt 0:00:49]} 21. Qe2 {
[%emt 0:00:13]} Nc6 {[%emt 0:00:05]} 22. Qb2 {[%emt 0:01:51]} Rac8 {[%emt 0:07:
32]} 23. a3 {[%emt 0:07:56]} Rfe8 {[%emt 0:03:27]} 24. Rac1 {[%emt 0:00:58]} h5
{[%emt 0:02:10]} 25. Rfd1 {[%emt 0:04:50]} h4 {[%emt 0:00:56]} 26. Bf4 {
[%emt 0:02:34]} g5 {[%emt 0:01:25]} 27. Be5 {[%emt 0:02:58]} Nxe5 {[%emt 0:00:
55]} 28. Rxc8 {[%emt 0:01:44]} Nf3+ {[%emt 0:00:34]} 29. Bxf3 {[%emt 0:00:10]}
Rxc8 {[%emt 0:00:08]} 30. Bg2 {[%emt 0:04:28]} Kg7 {[%emt 0:00:41]} 31. Re1 {
[%emt 0:01:13]} Re8 {[%emt 0:06:19]} 32. f3 {[%emt 0:03:13]} Nd6 {[%emt 0:00:
11]} 33. Re5 {[%emt 0:00:10]} Qg6 {[%emt 0:04:31]} 34. Qc1 {[%emt 0:03:04]}
Rxe5 {[%emt 0:03:05]} 35. dxe5 {[%emt 0:00:02]} Nf5 {[%emt 0:00:52]} 36. Qc5 {
[%emt 0:02:52]} hxg3 {[%emt 0:01:28]} 37. hxg3 {[%emt 0:01:11]} Nxg3 {[%emt 0:
00:17]} 38. Qd6 {[%emt 0:02:15]} Ne2+ {[%emt 0:04:26]} 39. Kf2 {[%emt 0:00:11]}
Nf4 {[%emt 0:00:20]} 40. Bf1 {[%emt 0:01:07]} Qxd6 {[%emt 0:01:54]} 41. exd6 {
[%emt 0:30:03]} Kf6 {[%emt 0:30:33]} 42. a4 {[%emt 0:00:00]} Ke6 {[%emt 0:00:
00]} 43. b4 {[%emt 0:00:00]} Kxd6 {[%emt 0:00:00]} 44. a5 {[%emt 0:00:00]} d4 {
[%emt 0:00:00]} 45. Bc4 {[%emt 0:00:00]} f6 {[%emt 0:00:00]} 46. Ke1 {[%emt 0:
00:00]} Nd5 {[%emt 0:00:00]} 47. b5 {[%emt 0:00:00]} axb5 {[%emt 0:00:00]} 48.
Bxb5 {[%emt 0:00:00]} Nb4 {[%emt 0:00:00]} 49. Kd2 {[%emt 0:00:00]} Kc5 {
[%emt 0:00:00]} 50. Bf1 {[%emt 0:00:00]} Nc6 {[%emt 0:00:00]} 51. a6 {[%emt 0:
00:00]} bxa6 {[%emt 0:00:00]} 52. Bxa6 {[%emt 0:00:00]} Ne5 {[%emt 0:00:00]}
53. Bb7 {[%emt 0:00:00]} Kc4 {[%emt 0:00:00]} 54. Ba6+ {[%emt 0:00:00]} Kd5 {
[%emt 0:00:00]} 55. Bb7+ {[%emt 0:00:00]} Ke6 {[%emt 0:00:00]} 56. Bc8+ {
[%emt 0:00:00]} Kf7 {[%emt 0:00:00]} 57. Ke2 {[%emt 0:00:00]} Kg6 {[%emt 0:00:
00]} 58. Kf2 {[%emt 0:00:00]} Nd3+ {[%emt 0:00:00]} 59. Ke2 {[%emt 0:00:00]}
Nf4+ {[%emt 0:00:00]} 60. Kf2 {[%emt 0:00:00]} Kf7 {[%emt 0:00:00]} 61. Kg3 {
[%emt 0:00:00]} d3 {[%emt 0:00:00]} 62. Ba6 {[%emt 0:00:00]} d2 {[%emt 0:00:00]
} 63. Bc4+ {[%emt 0:00:00]} Ke7 {[%emt 0:00:00]} 64. Bb3 {[%emt 0:00:00]} Ne2+
{[%emt 0:00:00]} 65. Kf2 {[%emt 0:00:00]} Nc3 {[%emt 0:00:00]} 0-1